fUSD/lending_fUSD_20241004
["ID","MTS","AMOUNT","RATE_DAILY","PERIOD"]
[339849597,1728064237919,-31184.60384993,0.00038346,6]
[339849598,1728064237929,-500.0,0.00038356,120]
[339849599,1728064237939,-635.03717163,0.00038356,120]
[339849600,1728064237948,-500.0,0.00038356,120]
[339849601,1728064237959,-500.0,0.00038356,120]
[339849602,1728064237969,-500.0,0.00038356,120]
[339849603,1728064237979,-500.0,0.00038356,120]
[339849604,1728064237988,-500.0,0.00038356,120]
[339849605,1728064237999,-500.0,0.00038356,120]
[339849606,1728064238008,-500.0,0.00038356,120]
[339849607,1728064238020,-500.0,0.00038356,120]
[339849608,1728064238032,-500.0,0.00038356,120]
[339849609,1728064238041,-500.0,0.00038356,120]
[339849610,1728064238050,-696.18,0.00038356,120]
[339849611,1728064238060,-402.16682028,0.00038356,120]
[339849612,1728064238069,-500.0,0.00038356,120]
[339849613,1728064238079,-500.0,0.00038356,120]
[339849614,1728064238088,-500.0,0.00038356,120]
[339849615,1728064238098,-399.05665983,0.00038356,120]
[339849616,1728064238115,-100.94334017,0.00038356,120]
[339849617,1728064238124,-500.0,0.00038356,120]
[339849618,1728064238132,-500.0,0.00038356,120]
[339849619,1728064238143,-699.11,0.00038356,120]
[339849620,1728064238152,-500.0,0.00038356,120]
[339849621,1728064238161,-500.0,0.00038356,120]
[339849622,1728064238170,-500.0,0.00038356,120]
[339849623,1728064238179,-538.60081068,0.00038356,120]
[339849624,1728064238187,-500.0,0.00038356,120]
[339849625,1728064238196,-500.0,0.00038356,120]
[339849627,1728064238206,-511.09,0.00038356,120]
[339849629,1728064238215,-415.77087771,0.00038356,120]
[339849630,1728064238224,-500.0,0.00038356,120]
[339849631,1728064238235,-500.0,0.00038356,120]
[339849632,1728064238244,-500.0,0.00038356,120]
[339849633,1728064238253,-457.65,0.00038356,120]
[339849634,1728064238262,-500.0,0.00038356,120]
[339849635,1728064238271,-500.0,0.00038356,120]
[339849636,1728064238279,-500.0,0.00038356,120]
[339849637,1728064238289,-589.96,0.00038356,120]
[339849638,1728064238297,-500.0,0.00038356,120]
[339849639,1728064238306,-500.0,0.00038356,120]
[339849640,1728064238315,-500.0,0.00038356,120]
[339849641,1728064238324,-500.0,0.00038356,120]
[339849642,1728064238333,-500.0,0.00038356,120]
[339849643,1728064238342,-500.0,0.00038356,120]
[339849644,1728064238351,-473.5115562,0.00038356,120]
[339849645,1728064238361,-612.63,0.00038356,120]
[339849646,1728064238372,-557.8,0.00038356,120]
[339849647,1728064238381,-500.0,0.00038356,120]
[339849648,1728064238390,-500.0,0.00038356,120]
[339849649,1728064238405,-500.0,0.00038356,120]
[339849650,1728064238415,-500.0,0.00038356,120]
[339849651,1728064238424,-500.0,0.00038356,120]
[339849652,1728064238433,-500.0,0.00038356,120]
[339849653,1728064238444,-500.0,0.00038356,120]
[339849654,1728064238453,-500.0,0.00038356,120]
[339849655,1728064238462,-500.0,0.00038356,120]
[339849656,1728064238471,-500.0,0.00038356,120]
[339849657,1728064238480,-500.0,0.00038356,120]
[339849658,1728064238489,-714.17,0.00038356,120]
[339849659,1728064238498,-500.0,0.00038356,120]
[339849660,1728064238508,-500.0,0.00038356,120]
[339849661,1728064238517,-500.0,0.00038356,120]
[339849662,1728064238527,-500.0,0.00038356,120]
[339849663,1728064238537,-500.0,0.00038356,120]
[339849664,1728064238546,-500.0,0.00038356,120]
[339849665,1728064238555,-500.0,0.00038356,120]
[339849666,1728064238564,-500.0,0.00038356,120]
[339849667,1728064238574,-500.0,0.00038356,120]
[339849668,1728064238583,-500.0,0.00038356,120]
[339849669,1728064238592,-500.0,0.00038356,120]
[339849670,1728064238601,-500.0,0.00038356,120]
[339849671,1728064238610,-500.0,0.00038356,120]
[339849672,1728064238619,-500.0,0.00038356,120]
[339849673,1728064238628,-500.0,0.00038356,120]
[339849674,1728064238638,-500.0,0.00038356,120]
[339849675,1728064238653,-500.0,0.00038356,120]
[339849676,1728064238661,-500.0,0.00038356,120]
[339849677,1728064238675,-500.0,0.00038356,120]
[339849678,1728064238684,-727.48,0.00038356,120]
[339849679,1728064238693,-500.0,0.00038356,120]
[339849680,1728064238702,-501.30840112,0.00038356,120]
[339849681,1728064238712,-500.0,0.00038356,120]
[339849682,1728064238721,-500.0,0.00038356,120]
[339849683,1728064238730,-500.0,0.00038356,120]
[339849684,1728064238739,-561.32,0.00038356,120]
[339849685,1728064238747,-500.0,0.00038356,120]
[339849686,1728064238756,-493.11397245,0.00038356,120]
[339849687,1728064238766,-683.05,0.00038356,120]
[339849688,1728064238776,-255.18,0.00038356,120]
[339849689,1728064238785,-500.0,0.00038356,120]
[339849690,1728064238794,-500.0,0.00038356,120]
[339849691,1728064238803,-500.0,0.00038356,120]
[339849692,1728064238812,-500.0,0.00038356,120]
[339849693,1728064238821,-578.64,0.00038356,120]
[339849694,1728064238829,-458.3540584,0.00038356,120]
[339849699,1728064239731,-41.6459416,0.00038356,120]
[339849700,1728064239740,-500.0,0.00038356,120]
[339849701,1728064239749,-500.0,0.00038356,120]
[339849702,1728064239759,-500.0,0.00038356,120]
[339849703,1728064239768,-500.0,0.00038356,120]
[339849704,1728064239777,-500.0,0.00038356,120]
[339849705,1728064239786,-500.0,0.00038356,120]
[339849706,1728064239795,-500.0,0.00038356,120]
[339849707,1728064239804,-500.0,0.00038356,120]
[339849708,1728064239813,-500.0,0.00038356,120]
[339849709,1728064239822,-500.0,0.00038356,120]
[339849710,1728064239832,-500.0,0.00038356,120]
[339849711,1728064239841,-500.0,0.00038356,120]
[339849712,1728064239850,-500.0,0.00038356,120]
[339849713,1728064239860,-500.0,0.00038356,120]
[339849714,1728064239868,-500.0,0.00038356,120]
[339849715,1728064239877,-500.0,0.00038356,120]
[339849716,1728064239887,-500.0,0.00038356,120]
[339849717,1728064239898,-500.0,0.00038356,120]
[339849718,1728064239907,-500.0,0.00038356,120]
[339849719,1728064239916,-500.0,0.00038356,120]
[339849720,1728064239925,-152.91798069,0.00038356,120]
[339849721,1728064239935,-4.49488499,0.00038356,120]
[339849722,1728064239947,-650.10809178,0.00038356,120]
[339849724,1728064239969,-732.59546786,0.00038356,120]
[339849781,1728064242794,-500.0,0.00038356,120]
[339849782,1728064242803,-500.0,0.00038356,120]
[339849783,1728064242813,-500.0,0.00038356,120]
[339849784,1728064242822,-500.0,0.00038356,120]
[339849785,1728064242831,-500.0,0.00038356,120]
[339849786,1728064242840,-500.0,0.00038356,120]
[339849787,1728064242849,-598.28,0.00038356,120]
[339849788,1728064242858,-501.27180334,0.00038356,120]
[339849789,1728064242867,-545.4,0.00038356,120]
[339849790,1728064242876,-500.0,0.00038356,120]
[339849791,1728064242885,-500.0,0.00038356,120]
[339849792,1728064242894,-500.0,0.00038356,120]
[339849793,1728064242905,-500.0,0.00038356,120]
[339849794,1728064242914,-1470.43,0.00038356,120]
[339849795,1728064242923,-541.31,0.00038356,120]
[339849796,1728064242932,-500.0,0.00038356,120]
[339849797,1728064242941,-500.0,0.00038356,2]
[339849798,1728064242951,-500.0,0.00038356,120]
[339849799,1728064242960,-673.87,0.00038356,120]
[339849800,1728064242969,-500.0,0.00038356,120]
[339849801,1728064242978,-247.45970953,0.00038356,120]
[339849802,1728064242989,-252.54029047,0.00038356,120]
[339849803,1728064242998,-355.91479497,0.00038356,120]
[339849804,1728064243020,-144.08520503,0.00038356,120]
[339849805,1728064243029,-1014.74,0.00038356,120]
[339849806,1728064243038,-164.5324211,0.00038356,120]
[339849807,1728064243053,-557.7175789,0.00038356,120]
[339849808,1728064243062,-462.78105243,0.00038356,120]
[339849809,1728064243073,-37.21894757,0.00038356,120]
[339849810,1728064243082,-500.0,0.00038356,120]
[339849811,1728064243091,-500.0,0.00038356,120]
[339849812,1728064243100,-500.0,0.00038356,120]
[339849813,1728064243109,-500.0,0.00038356,120]
[339849814,1728064243119,-500.0,0.00038356,120]
[339849815,1728064243127,-358.78105243,0.00038356,5]
[339849820,1728064246056,-150.0,0.0003441,2]
[339849822,1728064246066,-141.21894757,0.00038356,5]
[339849824,1728064246075,-500.0,0.00038356,120]
[339849826,1728064246085,-493.25700644,0.00038356,120]
[339849828,1728064246094,-1371.3,0.00038356,120]
[339849830,1728064246103,-442.13634599,0.00038356,120]
[339850359,1728064637004,161.18,0.00010959,2]
[339850360,1728064804035,150.0,0.00010959,2]
[339850361,1728064804242,150.0,0.00010959,2]
[339850362,1728064804445,150.0,0.00010959,2]
[339850363,1728064804664,150.0,0.00010959,2]
[339850364,1728064804897,246.49593182,0.00010959,2]
[339850367,1728065250273,166.0,0.00010959,2]
[339850371,1728065412450,13621.9750024,0.0001098,2]
[339850387,1728065431820,-300.0,0.00034986,120]
[339850391,1728065431847,-642.3977412,0.00034986,120]
[339850393,1728065431859,-991.4712588,0.00034986,120]
[339850395,1728065431869,-42.2287412,0.00035086,2]
[339850398,1728065431884,-239.1312588,0.00035086,2]
[339850400,1728065431894,-3462.95560693,0.000354,4]
[339850402,1728065432001,-242.04439307,0.000354,4]
[339850403,1728065432011,-155.52352004,0.00036899,2]
[339850404,1728065432022,-67.00647996,0.00036899,2]
[339850405,1728065432031,-250.0,0.00036928,120]
[339850406,1728065432040,-150.18,0.0003697,2]
[339850407,1728065432049,-189.50727823,0.0003699,47]
[339850408,1728065432111,-87.97472177,0.0003699,47]
[339850409,1728065432120,-170.529,0.0003699,47]
[339850410,1728065432130,-1372.71093522,0.0003699,2]
[339850411,1728065432140,-219.6,0.0003699,2]
[339850413,1728065432150,-499.99,0.0003699,2]
[339850415,1728065432159,-101616.0,0.00037,2]
[339850417,1728065432168,-155.58,0.00037066,120]
[339850419,1728065432178,-200.0,0.00037192,2]
[339850421,1728065432187,-250.0,0.00037253,2]
[339850423,1728065432195,-1000.0,0.00037324,2]
[339850425,1728065432205,-281.36,0.0003735,2]
[339850427,1728065432214,-4037.0,0.00037981,117]
[339850428,1728065432223,-1000.0,0.00038,14]
[339850430,1728065432232,-391.07771197,0.00038119,2]
[339850431,1728065432241,-5612.88415977,0.00038246,15]
[339850432,1728065432254,-156.38652863,0.00038255,2]
[339850434,1728065432264,-7500.0,0.00038256,2]
[339850436,1728065432273,-3239.45799618,0.00038256,10]
[339850438,1728065432284,-35065.26590416,0.00038345,15]
[339850439,1728065432296,-1433.92938975,0.00038345,15]
[339850441,1728065437948,-442.2982451,0.00038345,15]
[339850442,1728065437961,-388.08,0.00038345,15]
[339850443,1728065437987,-14315.55992765,0.00038345,15]
[339850444,1728065437997,-122862.371913,0.00038346,6]
[339850445,1728065438007,-300.0,0.00038355,30]
[339850446,1728065438017,-300.0,0.00038355,30]
[339850447,1728065438028,-300.0,0.00038355,30]
[339850448,1728065438038,-300.0,0.00038355,30]
[339850449,1728065438048,-500.0,0.00038356,120]
[339850450,1728065438059,-500.0,0.00038356,120]
[339850451,1728065438070,-509.87,0.00038356,120]
[339850452,1728065438081,-500.0,0.00038356,120]
[339850453,1728065438091,-187.95,0.00038356,120]
[339850454,1728065438102,-500.0,0.00038356,120]
[339850455,1728065438112,-271.78624509,0.00038356,120]
[339850456,1728065438122,-513.9,0.00038356,120]
[339850457,1728065438132,-500.0,0.00038356,120]
[339850458,1728065438143,-500.0,0.00038356,120]
[339850459,1728065438153,-500.0,0.00038356,120]
[339850460,1728065438163,-500.0,0.00038356,120]
[339850462,1728065438173,-560.92,0.00038356,120]
[339850464,1728065438183,-684.41,0.00038356,120]
[339850466,1728065438193,-500.0,0.00038356,120]
[339850468,1728065438203,-500.0,0.00038356,120]
[339850470,1728065438213,-500.0,0.00038356,120]
[339850472,1728065438223,-500.0,0.00038356,120]
[339850474,1728065438233,-500.0,0.00038356,120]
[339850476,1728065438243,-500.0,0.00038356,120]
[339850478,1728065438256,-500.0,0.00038356,120]
[339850480,1728065438265,-169.81042201,0.00038356,120]
[339850482,1728065438275,-500.0,0.00038356,120]
[339850484,1728065438285,-500.0,0.00038356,120]
[339850486,1728065438295,-500.0,0.00038356,120]
[339850488,1728065438305,-500.0,0.00038356,120]
[339850490,1728065438315,-500.0,0.00038356,120]
[339850492,1728065438326,-500.0,0.00038356,120]
[339850494,1728065438336,-500.0,0.00038356,120]
[339850496,1728065438345,-500.0,0.00038356,120]
[339850498,1728065438355,-697.17,0.00038356,120]
[339850500,1728065438364,-500.0,0.00038356,120]
[339850502,1728065438374,-500.0,0.00038356,120]
[339850504,1728065438385,-500.0,0.00038356,120]
[339850506,1728065438395,-500.0,0.00038356,120]
[339850508,1728065438404,-537.93,0.00038356,120]
[339850510,1728065438415,-500.0,0.00038356,120]
[339850511,1728065438424,-335.47388644,0.00038356,120]
[339850513,1728065438434,-500.0,0.00038356,120]
[339850515,1728065438444,-500.0,0.00038356,120]
[339850517,1728065438454,-500.0,0.00038356,120]
[339850519,1728065438463,-500.0,0.00038356,120]
[339850521,1728065438473,-500.0,0.00038356,120]
[339850523,1728065438482,-554.53,0.00038356,120]
[339850525,1728065438492,-500.0,0.00038356,120]
[339850527,1728065438502,-500.0,0.00038356,120]
[339850529,1728065438511,-500.0,0.00038356,120]
[339850531,1728065438524,-500.0,0.00038356,120]
[339850533,1728065438533,-500.0,0.00038356,120]
[339850535,1728065438544,-500.0,0.00038356,120]
[339850537,1728065438554,-500.0,0.00038356,120]
[339850539,1728065438564,-500.0,0.00038356,120]
[339850540,1728065438574,-500.0,0.00038356,120]
[339850541,1728065438584,-500.0,0.00038356,120]
[339850542,1728065438594,-654.59,0.00038356,120]
[339850543,1728065438603,-500.0,0.00038356,120]
[339850544,1728065438613,-500.0,0.00038356,120]
[339850545,1728065438623,-500.0,0.00038356,120]
[339850546,1728065438632,-500.0,0.00038356,120]
[339850547,1728065438642,-500.0,0.00038356,120]
[339850548,1728065438653,-500.0,0.00038356,120]
[339850549,1728065438663,-573.35,0.00038356,120]
[339850550,1728065438673,-500.0,0.00038356,120]
[339850551,1728065438683,-500.0,0.00038356,120]
[339850552,1728065438692,-500.0,0.00038356,120]
[339850553,1728065438702,-500.0,0.00038356,120]
[339850554,1728065438711,-500.0,0.00038356,120]
[339850555,1728065438721,-500.0,0.00038356,120]
[339850556,1728065438730,-500.0,0.00038356,120]
[339850557,1728065438740,-645.79,0.00038356,120]
[339850558,1728065438750,-518.75,0.00038356,120]
[339850559,1728065438760,-500.0,0.00038356,120]
[339850560,1728065438769,-500.0,0.00038356,120]
[339850561,1728065438779,-500.0,0.00038356,120]
[339850562,1728065438788,-500.0,0.00038356,120]
[339850563,1728065438798,-500.0,0.00038356,120]
[339850564,1728065438808,-431.94,0.00038356,120]
[339850565,1728065438819,-1314.16,0.00038356,120]
[339850566,1728065438829,-853.79,0.00038356,120]
[339850567,1728065438839,-198.37475609,0.00038356,120]
[339850568,1728065438848,-500.0,0.00038356,120]
[339850569,1728065438857,-500.0,0.00038356,120]
[339850570,1728065438867,-500.0,0.00038356,120]
[339850571,1728065438876,-500.0,0.00038356,120]
[339850572,1728065438885,-500.0,0.00038356,120]
[339850573,1728065438895,-500.0,0.00038356,120]
[339850574,1728065438904,-500.0,0.00038356,120]
[339850575,1728065438914,-500.0,0.00038356,120]
[339850576,1728065438924,-500.0,0.00038356,120]
[339850577,1728065438933,-500.0,0.00038356,120]
[339850578,1728065438943,-500.0,0.00038356,120]
[339850579,1728065438953,-500.0,0.00038356,120]
[339850580,1728065438963,-500.0,0.00038356,120]
[339850581,1728065438973,-500.0,0.00038356,120]
[339850582,1728065438983,-500.0,0.00038356,120]
[339850583,1728065438992,-500.0,0.00038356,120]
[339850584,1728065439002,-634.51,0.00038356,120]
[339850585,1728065439012,-500.0,0.00038356,120]
[339850586,1728065439022,-500.0,0.00038356,120]
[339850587,1728065439031,-500.0,0.00038356,120]
[339850588,1728065439041,-500.0,0.00038356,120]
[339850589,1728065439051,-500.0,0.00038356,120]
[339850590,1728065439060,-500.0,0.00038356,120]
[339850591,1728065439070,-500.0,0.00038356,120]
[339850592,1728065439080,-500.0,0.00038356,120]
[339850593,1728065439090,-500.0,0.00038356,120]
[339850594,1728065439100,-500.0,0.00038356,120]
[339850595,1728065439109,-500.0,0.00038356,120]
[339850596,1728065439119,-500.0,0.00038356,120]
[339850597,1728065439129,-500.0,0.00038356,120]
[339850598,1728065439140,-500.0,0.00038356,120]
[339850599,1728065439150,-150.0,0.00038356,120]
[339850600,1728065439159,-500.0,0.00038356,120]
[339850601,1728065439168,-878.88,0.00038356,120]
[339850602,1728065439178,-500.0,0.00038356,120]
[339850603,1728065439187,-593.23728745,0.00038356,120]
[339850604,1728065439197,-500.0,0.00038356,120]
[339850605,1728065439206,-500.0,0.00038356,120]
[339850606,1728065439215,-500.0,0.00038356,120]
[339850607,1728065439225,-1064.86,0.00038356,120]
[339850608,1728065439234,-500.0,0.00038356,120]
[339850609,1728065439243,-500.0,0.00038356,120]
[339850610,1728065439257,-500.0,0.00038356,120]
[339850611,1728065439267,-500.0,0.00038356,120]
[339850612,1728065439276,-500.0,0.00038356,120]
[339850613,1728065439285,-500.0,0.00038356,120]
[339850614,1728065439295,-500.0,0.00038356,120]
[339850615,1728065439304,-677.15,0.00038356,120]
[339850616,1728065439314,-500.83,0.00038356,120]
[339850617,1728065439326,-500.0,0.00038356,120]
[339850618,1728065439335,-500.0,0.00038356,7]
[339850619,1728065439345,-500.0,0.00038356,120]
[339850620,1728065439354,-500.0,0.00038356,120]
[339850621,1728065439364,-2441.48,0.00038356,120]
[339850622,1728065439373,-500.0,0.00038356,120]
[339850623,1728065439382,-1046.35,0.00038356,120]
[339850624,1728065439396,-500.0,0.00038356,120]
[339850625,1728065439406,-500.0,0.00038356,120]
[339850626,1728065439415,-500.0,0.00038356,120]
[339850627,1728065439425,-1051.83,0.00038356,120]
[339850628,1728065439435,-173.40805703,0.00038356,120]
[339850629,1728065439444,-500.0,0.00038356,120]
[339850630,1728065439454,-1079.73,0.00038356,120]
[339850631,1728065439463,-500.0,0.00038356,120]
[339850632,1728065439472,-500.0,0.00038356,120]
[339850633,1728065439482,-515.94,0.00038356,120]
[339850634,1728065439491,-500.0,0.00038356,120]
[339850635,1728065439501,-500.0,0.00038356,120]
[339850636,1728065439510,-500.0,0.00038356,120]
[339850637,1728065439520,-556.84,0.00038356,120]
[339850638,1728065439530,-500.0,0.00038356,120]
[339850639,1728065439539,-500.0,0.00038356,120]
[339850640,1728065439548,-500.0,0.00038356,120]
[339850641,1728065439558,-368.56791486,0.00038356,120]
[339850642,1728065439567,-500.0,0.00038356,120]
[339850643,1728065439577,-500.0,0.00038356,120]
[339850644,1728065439586,-1524.73,0.00038356,120]
[339850645,1728065439595,-500.0,0.00038356,120]
[339850646,1728065439605,-500.0,0.00038356,120]
[339850647,1728065439614,-332.46977241,0.00038356,120]
[339850648,1728065439623,-500.0,0.00038356,120]
[339850649,1728065439632,-500.0,0.00038356,120]
[339850650,1728065439646,-500.0,0.00038356,120]
[339850651,1728065439656,-500.0,0.00038356,120]
[339850652,1728065439666,-500.0,0.00038356,120]
[339850653,1728065439675,-697.42,0.00038356,120]
[339850654,1728065439685,-500.0,0.00038356,120]
[339850656,1728065439694,-500.0,0.00038356,120]
[339850657,1728065439703,-202.76876555,0.00038356,120]
[339850658,1728065439713,-500.0,0.00038356,120]
[339850659,1728065439722,-500.0,0.00038356,120]
[339850660,1728065439732,-500.0,0.00038356,120]
[339850661,1728065439742,-500.0,0.00038356,120]
[339850662,1728065439752,-500.0,0.00038356,120]
[339850663,1728065439761,-500.0,0.00038356,120]
[339850664,1728065439771,-500.0,0.00038356,120]
[339850665,1728065439780,-500.0,0.00038356,120]
[339850666,1728065439789,-500.0,0.00038356,120]
[339850667,1728065439799,-500.0,0.00038356,120]
[339850668,1728065439809,-822.64,0.00038356,120]
[339850669,1728065439819,-601.55,0.00038356,120]
[339850670,1728065439829,-500.0,0.00038356,120]
[339850671,1728065439838,-500.0,0.00038356,120]
[339850672,1728065439847,-500.0,0.00038356,120]
[339850673,1728065439858,-778.4,0.00038356,120]
[339850674,1728065439867,-500.0,0.00038356,120]
[339850675,1728065439877,-862.05,0.00038356,120]
[339850676,1728065439887,-666.31,0.00038356,120]
[339850677,1728065439896,-500.0,0.00038356,120]
[339850678,1728065439906,-500.0,0.00038356,120]
[339850679,1728065439916,-500.0,0.00038356,120]
[339850680,1728065439925,-1642.01,0.00038356,120]
[339850681,1728065439935,-500.0,0.00038356,120]
[339850682,1728065439945,-500.0,0.00038356,120]
[339850683,1728065439956,-500.0,0.00038356,120]
[339850684,1728065439966,-500.0,0.00038356,2]
[339850685,1728065439976,-500.0,0.00038356,120]
[339850686,1728065439985,-500.0,0.00038356,120]
[339850687,1728065439995,-500.0,0.00038356,120]
[339850688,1728065440005,-500.0,0.00038356,120]
[339850689,1728065440014,-535.35,0.00038356,120]
[339850690,1728065440024,-1735.41,0.00038356,120]
[339850691,1728065440033,-500.0,0.00038356,120]
[339850692,1728065440043,-500.0,0.00038356,120]
[339850693,1728065440052,-854.2,0.00038356,120]
[339850694,1728065440062,-942.16,0.00038356,120]
[339850695,1728065440071,-1039.43,0.00038356,120]
[339850696,1728065440081,-500.0,0.00038356,120]
[339850697,1728065440091,-500.0,0.00038356,120]
[339850698,1728065440100,-1735.39,0.00038356,120]
[339850699,1728065440110,-500.0,0.00038356,120]
[339850700,1728065440119,-766.65,0.00038356,120]
[339850701,1728065440128,-500.0,0.00038356,120]
[339850702,1728065440138,-500.0,0.00038356,120]
[339850703,1728065440148,-500.0,0.00038356,120]
[339850704,1728065440167,-500.0,0.00038356,120]
[339850705,1728065440176,-500.0,0.00038356,120]
[339850706,1728065440186,-500.0,0.00038356,120]
[339850707,1728065440195,-500.0,0.00038356,120]
[339850709,1728065440204,-699.82,0.00038356,120]
[339850711,1728065440214,-500.0,0.00038356,120]
[339850713,1728065440224,-500.0,0.00038356,120]
[339850715,1728065440233,-664.54,0.00038356,120]
[339850716,1728065440242,-500.0,0.00038356,120]
[339850718,1728065440256,-1010.53,0.00038356,120]
[339850720,1728065440265,-500.0,0.00038356,120]
[339850722,1728065440274,-500.0,0.00038356,120]
[339850724,1728065440283,-500.0,0.00038356,120]
[339850726,1728065440292,-504.85,0.00038356,120]
[339850728,1728065440302,-1409.17,0.00038356,120]
[339850730,1728065440311,-500.0,0.00038356,120]
[339850732,1728065440319,-500.0,0.00038356,120]
[339850734,1728065440328,-1409.07,0.00038356,24]
[339850736,1728065440337,-500.0,0.00038356,120]
[339850737,1728065440347,-500.0,0.00038356,120]
[339850739,1728065440356,-500.0,0.00038356,120]
[339850742,1728065440366,-692.16,0.00038356,120]
[339850743,1728065440375,-500.0,0.00038356,120]
[339850745,1728065440384,-500.0,0.00038356,120]
[339850747,1728065440394,-2193.1,0.00038356,120]
[339850764,1728065440581,-500.0,0.00038356,120]
[339850765,1728065440622,-500.0,0.00038356,120]
[339850766,1728065440631,-500.0,0.00038356,120]
[339850767,1728065440642,-500.0,0.00038356,120]
[339850768,1728065440652,-500.0,0.00038356,120]
[339850769,1728065440661,-500.0,0.00038356,120]
[339850770,1728065440670,-731.81,0.00038356,120]
[339850771,1728065440679,-500.0,0.00038356,120]
[339850772,1728065440689,-500.0,0.00038356,120]
[339850773,1728065440698,-2826.56,0.00038356,120]
[339850774,1728065440707,-500.0,0.00038356,120]
[339850775,1728065440716,-500.0,0.00038356,120]
[339850776,1728065440725,-506.51,0.00038356,120]
[339850777,1728065440735,-500.0,0.00038356,120]
[339850778,1728065440745,-4041.95,0.00038356,120]
[339850779,1728065440754,-500.0,0.00038356,120]
[339850780,1728065440764,-500.0,0.00038356,120]
[339850781,1728065440773,-522.55,0.00038356,120]
[339850782,1728065440784,-1062.09,0.00038356,120]
[339850783,1728065440795,-500.0,0.00038356,120]
[339850784,1728065440805,-500.0,0.00038356,120]
[339850785,1728065440814,-500.0,0.00038356,120]
[339850786,1728065440823,-500.0,0.00038356,120]
[339850787,1728065440833,-500.0,0.00038356,120]
[339850788,1728065440844,-500.0,0.00038356,120]
[339850789,1728065440854,-5030.52,0.00038356,120]
[339850790,1728065440864,-500.0,0.00038356,120]
[339850791,1728065440873,-522.68,0.00038356,120]
[339850792,1728065440883,-972.45,0.00038356,120]
[339850793,1728065440893,-797.48,0.00038356,120]
[339850794,1728065440903,-500.0,0.00038356,120]
[339850795,1728065440913,-500.0,0.00038356,120]
[339850796,1728065440923,-500.0,0.00038356,120]
[339850797,1728065440933,-500.0,0.00038356,120]
[339850798,1728065440943,-2211.54,0.00038356,120]
[339850799,1728065440952,-1057.14,0.00038356,120]
[339850800,1728065440962,-500.0,0.00038356,120]
[339850801,1728065440972,-500.0,0.00038356,120]
[339850802,1728065440982,-500.0,0.00038356,120]
[339850803,1728065440992,-500.0,0.00038356,120]
[339850804,1728065441002,-640.24,0.00038356,120]
[339850805,1728065441014,-500.0,0.00038356,120]
[339850806,1728065441023,-2497.05,0.00038356,120]
[339850807,1728065441033,-500.0,0.00038356,120]
[339850808,1728065441042,-384.93816894,0.00038356,120]
[339850809,1728065441051,-1153.27,0.00038356,120]
[339850810,1728065441061,-746.86,0.00038356,120]
[339850811,1728065441070,-500.0,0.00038356,120]
[339850812,1728065441080,-500.0,0.00038356,120]
[339850813,1728065441090,-500.0,0.00038356,120]